fUST/lending_fUST_20250112
["ID","MTS","AMOUNT","RATE_DAILY","PERIOD"]
[348593404,1736655041696,-500.0,0.00019991,3]
[348593405,1736655041705,-500.0,0.00019991,3]
[348593406,1736655041715,-500.0,0.00019991,3]
[348593407,1736655041724,-500.0,0.00019991,3]
[348593408,1736655041733,-501.92763906,0.00019991,3]
[348593409,1736655041743,-500.0,0.00019991,3]
[348593410,1736655041752,-501.38328334,0.00019991,3]
[348593411,1736655041761,-500.0,0.00019991,3]
[348593412,1736655041771,-168.45418903,0.00019992,2]
[348593413,1736655041780,-154.325057,0.00019992,2]
[348593414,1736655041789,-500.0,0.00019992,3]
[348593415,1736655041799,-500.0,0.00019992,3]
[348593416,1736655041808,-500.0,0.00019992,3]
[348593417,1736655041817,-500.0,0.00019992,3]
[348593418,1736655041826,-500.0,0.00019992,3]
[348593419,1736655041835,-500.0,0.00019992,3]
[348593420,1736655041845,-500.0,0.00019992,3]
[348593421,1736655041937,-517.52189263,0.00019992,3]
[348593422,1736655041947,-500.0,0.00019992,2]
[348593423,1736655041957,-500.0,0.00019992,2]
[348593424,1736655041967,-500.0,0.00019992,2]
[348593425,1736655041978,-500.0,0.00019992,2]
[348593426,1736655041989,-500.0,0.00019992,2]
[348593427,1736655041998,-459.179524,0.00019992,2]
[348593428,1736655042007,-151.0,0.00019992,2]
[348593429,1736655042017,-151.0,0.00019992,2]
[348593430,1736655042028,-500.0,0.00019992,3]
[348593431,1736655042038,-2064.2,0.00019992,3]
[348593432,1736655042048,-2064.2,0.00019992,3]
[348593433,1736655042060,-2064.2,0.00019992,3]
[348593434,1736655042072,-550.81,0.00019992,3]
[348593435,1736655042083,-151.0,0.00019992,2]
[348593436,1736655042092,-260.075084,0.00019992,2]
[348593437,1736655042104,-157.342555,0.00019993,2]
[348593438,1736655042114,-500.0,0.00019993,3]
[348593439,1736655042125,-500.0,0.00019993,3]
[348593441,1736655042135,-500.0,0.00019993,3]
[348593442,1736655042146,-509.09498918,0.00019993,3]
[348593443,1736655042155,-500.0,0.00019993,3]
[348593444,1736655042164,-500.0,0.00019993,3]
[348593445,1736655042174,-500.0,0.00019993,3]
[348593446,1736655042184,-500.0,0.00019993,3]
[348593447,1736655042194,-500.0,0.00019993,3]
[348593448,1736655042203,-502.48962417,0.00019993,3]
[348593449,1736655042214,-1213.03,0.00019993,3]
[348593450,1736655042224,-500.0,0.00019993,3]
[348593451,1736655042234,-151.0,0.00019993,2]
[348593452,1736655042243,-151.0,0.00019993,2]
[348593453,1736655042253,-151.0,0.00019993,2]
[348593454,1736655042262,-500.0,0.00019993,3]
[348593455,1736655042271,-500.0,0.00019993,3]
[348593456,1736655042281,-500.0,0.00019993,3]
[348593457,1736655042291,-151.0,0.00019993,2]
[348593458,1736655042300,-500.0,0.00019993,3]
[348593459,1736655042310,-500.0,0.00019993,3]
[348593460,1736655042319,-450.87495509,0.00019993,3]
[348593461,1736655042328,-500.0,0.00019993,3]
[348593462,1736655042337,-456.9134975,0.00019993,3]
[348593463,1736655042346,-500.0,0.00019993,3]
[348593464,1736655042355,-525.64,0.00019993,3]
[348593465,1736655042365,-500.0,0.00019993,3]
[348593466,1736655042375,-500.0,0.00019993,3]
[348593467,1736655042386,-500.0,0.00019993,3]
[348593468,1736655042396,-500.0,0.00019993,3]
[348593469,1736655042406,-500.0,0.00019993,3]
[348593470,1736655042415,-500.0,0.00019993,3]
[348593471,1736655042424,-500.0,0.00019993,3]
[348593472,1736655042434,-500.0,0.00019993,3]
[348593473,1736655042444,-766.77,0.00019993,3]
[348593474,1736655042454,-500.0,0.00019993,3]
[348593475,1736655042464,-500.0,0.00019993,3]
[348593476,1736655042475,-500.0,0.00019993,3]
[348593477,1736655042486,-500.0,0.00019993,3]
[348593479,1736655042496,-500.0,0.00019993,3]
[348593481,1736655042505,-500.0,0.00019993,3]
[348593483,1736655042514,-500.0,0.00019993,3]
[348593485,1736655042523,-500.0,0.00019993,3]
[348593487,1736655042532,-500.0,0.00019993,3]
[348593488,1736655042541,-501.68093283,0.00019993,3]
[348593489,1736655042550,-500.0,0.00019993,3]
[348593490,1736655042559,-500.0,0.00019993,3]
[348593492,1736655042574,-500.0,0.00019993,3]
[348593494,1736655042583,-500.0,0.00019993,3]
[348593496,1736655042592,-501.02536515,0.00019993,3]
[348593498,1736655042602,-500.0,0.00019993,3]
[348593500,1736655042613,-500.0,0.00019993,3]
[348593502,1736655042623,-500.0,0.00019993,3]
[348593504,1736655042633,-1368.29,0.00019993,3]
[348593506,1736655042643,-500.0,0.00019993,3]
[348593508,1736655042654,-502.23023571,0.00019993,3]
[348593510,1736655042663,-500.0,0.00019993,3]
[348593512,1736655042672,-500.0,0.00019993,3]
[348593514,1736655042682,-500.0,0.00019993,3]
[348593516,1736655042691,-500.0,0.00019993,3]
[348593518,1736655042700,-500.0,0.00019993,3]
[348593520,1736655042710,-4664.24,0.00019993,3]
[348593521,1736655042719,-639.74545545,0.00019993,3]
[348593522,1736655042728,-500.7950544,0.00019993,3]
[348593524,1736655042737,-500.0,0.00019993,3]
[348593526,1736655042747,-500.0,0.00019993,3]
[348593528,1736655042755,-1226.43,0.00019993,3]
[348593530,1736655042765,-500.0,0.00019993,3]
[348593531,1736655042774,-500.0,0.00019993,3]
[348593534,1736655042783,-500.0,0.00019993,3]
[348593536,1736655042793,-502.04804651,0.00019993,3]
[348593537,1736655042803,-282.299747,0.00019993,2]
[348593539,1736655042812,-2960.21,0.00019993,3]
[348593541,1736655042822,-2064.2,0.00019993,3]
[348593544,1736655042832,-2064.2,0.00019993,3]
[348593546,1736655042842,-2064.2,0.00019993,3]
[348593548,1736655042851,-2064.2,0.00019993,3]
[348593550,1736655042860,-2064.2,0.00019993,3]
[348593552,1736655042869,-500.970423,0.00019993,3]
[348593554,1736655042878,-502.24718242,0.00019993,3]
[348593556,1736655042887,-500.0,0.00019993,3]
[348593558,1736655042896,-151.0,0.00019993,2]
[348593559,1736655042905,-151.0,0.00019993,2]
[348593562,1736655042915,-151.0,0.00019993,2]
[348593563,1736655042924,-500.0,0.00019993,3]
[348593566,1736655042934,-500.0,0.00019993,3]
[348593568,1736655042944,-500.0,0.00019993,3]
[348593569,1736655042953,-500.0,0.00019993,3]
[348593570,1736655042962,-500.0,0.00019993,3]
[348593571,1736655042971,-500.0,0.00019993,3]
[348593572,1736655042979,-500.0,0.00019993,3]
[348593573,1736655042988,-500.0,0.00019993,3]
[348593574,1736655042997,-563.01,0.00019993,3]
[348593575,1736655043007,-157.64,0.00019994,2]
[348593576,1736655043018,-159.803761,0.00019994,2]
[348593577,1736655043027,-151.0,0.00019994,2]
[348593578,1736655043036,-154.921162,0.00019994,2]
[348593579,1736655043045,-500.0,0.00019994,3]
[348593580,1736655043054,-500.0,0.00019994,3]
[348593581,1736655043063,-501.26237147,0.00019994,3]
[348593582,1736655043072,-500.0,0.00019994,3]
[348593583,1736655043081,-500.0,0.00019994,3]
[348593584,1736655043090,-533.48346418,0.00019994,3]
[348593585,1736655043099,-500.0,0.00019994,3]
[348593586,1736655043108,-502.98962031,0.00019994,3]
[348593587,1736655043117,-500.0,0.00019994,3]
[348593588,1736655043126,-501.4296322,0.00019994,3]
[348593589,1736655043135,-500.0,0.00019994,3]
[348593590,1736655043144,-500.0,0.00019994,3]
[348593592,1736655043153,-500.0,0.00019994,3]
[348593594,1736655043162,-500.0,0.00019994,3]
[348593596,1736655043171,-500.0,0.00019994,3]
[348593598,1736655043181,-501.2893864,0.00019994,3]
[348593600,1736655043190,-500.0,0.00019994,3]
[348593601,1736655043199,-500.0,0.00019994,3]
[348593602,1736655043209,-500.0,0.00019994,3]
[348593604,1736655043218,-500.0,0.00019994,3]
[348593605,1736655043228,-500.0,0.00019994,3]
[348593606,1736655043237,-500.0,0.00019994,3]
[348593607,1736655043246,-500.0,0.00019994,3]
[348593608,1736655043255,-501.37222423,0.00019994,3]
[348593609,1736655043264,-500.0,0.00019994,3]
[348593610,1736655043273,-502.26629211,0.00019994,3]
[348593611,1736655043282,-500.0,0.00019994,3]
[348593612,1736655043291,-501.69124403,0.00019994,3]
[348593613,1736655043300,-500.0,0.00019994,3]
[348593614,1736655043310,-500.0,0.00019994,3]
[348593615,1736655043319,-506.97518651,0.00019994,3]
[348593616,1736655043327,-500.0,0.00019994,3]
[348593617,1736655043336,-501.16567529,0.00019994,3]
[348593618,1736655043347,-618.80187289,0.00019994,3]
[348593619,1736655043358,-500.0,0.00019994,3]
[348593620,1736655043368,-500.0,0.00019994,3]
[348593621,1736655043378,-500.64727373,0.00019994,3]
[348593622,1736655043387,-500.0,0.00019994,3]
[348593623,1736655043397,-500.0,0.00019994,3]
[348593624,1736655043408,-501.82585664,0.00019994,3]
[348593625,1736655043417,-500.0,0.00019994,3]
[348593626,1736655043427,-584.99993274,0.00019994,3]
[348593627,1736655043436,-500.0,0.00019994,3]
[348593628,1736655043446,-436.37026954,0.00019994,2]
[348593629,1736655043455,-500.80681654,0.00019994,3]
[348593630,1736655043465,-500.0,0.00019994,3]
[348593631,1736655043474,-500.73003913,0.00019994,3]
[348593632,1736655043484,-500.0,0.00019994,3]
[348593633,1736655043494,-188.69902741,0.00019994,2]
[348593634,1736655043503,-500.0,0.00019994,3]
[348593635,1736655043513,-500.0,0.00019994,3]
[348593636,1736655043523,-500.0,0.00019994,3]
[348593637,1736655043533,-500.0,0.00019994,3]
[348593638,1736655043542,-500.0,0.00019994,3]
[348593639,1736655043551,-500.0,0.00019994,3]
[348593640,1736655043560,-501.61388161,0.00019994,3]
[348593641,1736655043569,-500.0,0.00019994,3]
[348593642,1736655043579,-151.0,0.00019994,2]
[348593643,1736655043588,-151.0,0.00019994,2]
[348593644,1736655043597,-151.0,0.00019994,2]
[348593645,1736655043607,-151.0,0.00019994,2]
[348593646,1736655043616,-151.0,0.00019994,2]
[348593647,1736655043625,-151.0,0.00019994,2]
[348593648,1736655043636,-151.0,0.00019994,2]
[348593649,1736655043728,-154.025399,0.00019994,2]
[348593650,1736655043738,-500.0,0.00019994,3]
[348593651,1736655043748,-229.53417807,0.00019994,3]
[348593652,1736655043758,-500.0,0.00019994,3]
[348593653,1736655043767,-500.0,0.00019994,3]
[348593654,1736655043776,-470.71285066,0.00019994,3]
[348593655,1736655043785,-501.45661771,0.00019994,3]
[348593656,1736655043794,-500.72238276,0.00019994,3]
[348593657,1736655043805,-500.0,0.00019994,3]
[348593658,1736655043814,-500.0,0.00019994,3]
[348593659,1736655043824,-500.0,0.00019994,3]
[348593660,1736655043835,-500.0,0.00019994,3]
[348593661,1736655043843,-300.0,0.00019994,3]
[348593662,1736655043853,-500.0,0.00019994,3]
[348593663,1736655043862,-502.50674405,0.00019994,3]
[348593664,1736655043871,-152.552286,0.00019994,2]
[348593665,1736655043880,-501.65988217,0.00019994,3]
[348593666,1736655043889,-503.94064012,0.00019994,3]
[348593667,1736655043899,-500.0,0.00019994,3]
[348593668,1736655043909,-501.68231343,0.00019994,3]
[348593669,1736655043918,-501.12416113,0.00019994,3]
[348593670,1736655043927,-500.0,0.00019994,3]
[348593671,1736655043937,-500.0,0.00019994,3]
[348593672,1736655043947,-500.0,0.00019994,3]
[348593673,1736655043957,-500.0,0.00019994,3]
[348593674,1736655043968,-501.48817057,0.00019994,3]
[348593675,1736655043979,-500.0,0.00019994,3]
[348593676,1736655043989,-500.0,0.00019994,3]
[348593677,1736655043998,-500.0,0.00019994,3]
[348593678,1736655044008,-500.0,0.00019994,3]
[348593679,1736655044018,-151.0,0.00019994,2]
[348593680,1736655044027,-151.0,0.00019994,2]
[348593681,1736655044038,-221.997737,0.00019994,2]
[348593682,1736655044050,-500.0,0.00019994,3]
[348593683,1736655044060,-590.23213359,0.00019994,3]
[348593684,1736655044070,-500.0,0.00019994,3]
[348593685,1736655044079,-500.0,0.00019994,3]
[348593686,1736655044090,-500.0,0.00019994,3]
[348593687,1736655044100,-500.0,0.00019994,3]
[348593688,1736655044110,-500.0,0.00019994,3]
[348593689,1736655044120,-500.0,0.00019994,3]
[348593690,1736655044129,-444.57666736,0.00019994,3]
[348593691,1736655044138,-1000.0,0.00019994,3]
[348593692,1736655044148,-500.0,0.00019994,3]
[348593693,1736655044158,-500.0,0.00019994,3]
[348593694,1736655044167,-501.03307962,0.00019994,3]
[348593695,1736655044176,-500.0,0.00019994,3]
[348593696,1736655044187,-500.0,0.00019994,3]
[348593697,1736655044197,-500.0,0.00019994,3]
[348593698,1736655044208,-500.0,0.00019994,3]
[348593699,1736655044218,-639.02996203,0.00019994,3]
[348593700,1736655044227,-500.0,0.00019994,3]
[348593701,1736655044236,-500.0,0.00019994,3]
[348593702,1736655044245,-500.0,0.00019994,3]
[348593703,1736655044254,-155.756174,0.00019994,2]
[348593704,1736655044265,-502.75709346,0.00019994,3]
[348593705,1736655044274,-500.0,0.00019994,3]
[348593706,1736655044285,-502.30994072,0.00019994,3]
[348593707,1736655044294,-428.43712141,0.00019994,3]
[348593708,1736655044304,-500.0,0.00019994,3]
[348593709,1736655044315,-500.0,0.00019994,3]
[348593710,1736655044325,-501.86943663,0.00019994,3]
[348593711,1736655044334,-500.0,0.00019994,3]
[348593712,1736655044343,-509.89291906,0.00019994,3]
[348593713,1736655044352,-203.350546,0.00019994,2]
[348593714,1736655044362,-500.0,0.00019994,3]
[348593715,1736655044371,-500.0,0.00019994,3]
[348593716,1736655044381,-500.0,0.00019994,3]
[348593717,1736655044391,-500.0,0.00019994,3]
[348593718,1736655044402,-500.0,0.00019994,3]
[348593719,1736655044411,-500.0,0.00019994,3]
[348593720,1736655044420,-510.87922945,0.00019994,3]
[348593721,1736655044429,-501.476396,0.00019994,3]
[348593722,1736655044438,-500.0,0.00019994,3]
[348593723,1736655044447,-500.0,0.00019994,3]
[348593724,1736655044457,-568.30179641,0.00019994,3]
[348593725,1736655044466,-521.23991191,0.00019994,3]
[348593726,1736655044475,-545.21782,0.00019994,3]
[348593727,1736655044484,-508.96636462,0.00019994,3]
[348593728,1736655044494,-529.22611042,0.00019994,3]
[348593729,1736655044503,-502.65236849,0.00019994,3]
[348593730,1736655044514,-500.0,0.00019994,3]
[348593731,1736655044524,-151.04700071,0.00019994,3]
[348593732,1736655044533,-507.39385188,0.00019994,3]
[348593733,1736655044542,-500.0,0.00019994,3]
[348593734,1736655044552,-2064.2,0.00019994,3]
[348593735,1736655044562,-2064.2,0.00019994,3]
[348593736,1736655044575,-2064.2,0.00019994,3]
[348593737,1736655044586,-2064.2,0.00019994,3]
[348593738,1736655044595,-2064.2,0.00019994,3]
[348593739,1736655044604,-500.0,0.00019995,3]
[348593740,1736655044614,-500.0,0.00019995,3]
[348593741,1736655044623,-580.88088271,0.00019995,3]
[348593742,1736655044633,-506.70146959,0.00019995,3]
[348593743,1736655044643,-560.21436319,0.00019995,3]
[348593744,1736655044653,-493.83557674,0.00019995,3]
[348593745,1736655044663,-501.72930023,0.00019995,3]
[348593746,1736655044672,-501.70354296,0.00019995,3]
[348593747,1736655044681,-500.0,0.00019995,3]
[348593748,1736655044691,-500.0,0.00019995,3]
[348593749,1736655044700,-150.61464645,0.00019995,3]
[348593750,1736655044710,-501.60552393,0.00019995,3]
[348593751,1736655044719,-505.68491691,0.00019995,3]
[348593752,1736655044728,-500.0,0.00019995,3]
[348593753,1736655044737,-501.52992089,0.00019995,3]
[348593754,1736655044746,-500.71417408,0.00019995,3]
[348593755,1736655044756,-500.0,0.00019995,3]
[348593756,1736655044765,-500.0,0.00019995,3]
[348593757,1736655044775,-500.0,0.00019995,3]
[348593758,1736655044784,-500.0,0.00019995,3]
[348593759,1736655044793,-500.0,0.00019995,3]
[348593760,1736655044803,-1457.91,0.00019995,3]
[348593761,1736655044812,-502.76622481,0.00019995,3]
[348593762,1736655044822,-500.0,0.00019995,3]
[348593763,1736655044832,-500.0,0.00019995,3]
[348593764,1736655044842,-500.0,0.00019995,3]
[348593765,1736655044851,-500.0,0.00019995,3]
[348593766,1736655044860,-500.0,0.00019995,3]
[348593767,1736655044869,-500.0,0.00019995,3]
[348593768,1736655044879,-500.0,0.00019995,3]
[348593769,1736655044888,-500.0,0.00019995,3]
[348593770,1736655044897,-500.0,0.00019995,3]
[348593771,1736655044906,-500.0,0.00019995,3]
[348593772,1736655044916,-500.0,0.00019995,3]
[348593773,1736655044925,-500.0,0.00019995,3]
[348593774,1736655044934,-500.0,0.00019995,3]
[348593775,1736655044944,-2064.2,0.00019995,3]
[348593776,1736655044954,-500.0,0.00019996,3]
[348593777,1736655044964,-968.88,0.00019996,3]
[348593778,1736655044976,-500.0,0.00019996,3]
[348593779,1736655044985,-500.0,0.00019996,3]
[348593780,1736655044994,-500.0,0.00019996,3]
[348593781,1736655045003,-500.0,0.00019996,3]
[348593782,1736655045013,-500.0,0.00019996,3]
[348593783,1736655045022,-500.0,0.00019996,3]
[348593784,1736655045034,-500.0,0.00019996,3]
[348593785,1736655045045,-500.0,0.00019996,3]
[348593786,1736655045055,-500.0,0.00019996,3]
[348593787,1736655045064,-241.98451269,0.00019996,3]
[348593788,1736655045076,-500.0,0.00019996,3]
[348593789,1736655045086,-1820.99,0.00019996,3]
[348593790,1736655045095,-1820.99,0.00019996,3]
[348593791,1736655045105,-1820.99,0.00019996,3]
[348593792,1736655045116,-500.0,0.00019996,3]
[348593793,1736655045126,-500.0,0.00019996,3]
[348593794,1736655045136,-500.0,0.00019996,3]
[348593795,1736655045145,-500.0,0.00019996,3]
[348593796,1736655045154,-2064.2,0.00019996,3]
[348593797,1736655045164,-2064.2,0.00019996,3]
[348593798,1736655045174,-2064.2,0.00019996,3]
[348593799,1736655045184,-2064.2,0.00019996,3]
[348593800,1736655045194,-2064.2,0.00019996,3]
[348593801,1736655045203,-2064.2,0.00019996,3]
[348593802,1736655045212,-2064.2,0.00019996,3]
[348593803,1736655045221,-2064.2,0.00019996,3]
[348593804,1736655045231,-2064.2,0.00019996,3]
[348593805,1736655045240,-2064.28667317,0.00019996,3]
[348593806,1736655045251,-500.0,0.00019996,3]
[348593807,1736655045260,-151.0,0.00019997,2]
[348593808,1736655045270,-151.0,0.00019997,2]
[348593809,1736655045279,-151.0,0.00019997,2]
[348593810,1736655045289,-1820.99,0.00019997,3]
[348593811,1736655045299,-1820.99,0.00019997,3]
[348593812,1736655045310,-1820.99,0.00019997,3]
[348593813,1736655045398,-1820.99,0.00019997,3]
[348593814,1736655045407,-1820.99,0.00019997,3]
[348593815,1736655045416,-1820.99,0.00019997,3]
[348593817,1736655045425,-1820.99,0.00019997,3]
[348593819,1736655045436,-501.15328253,0.00019997,3]
[348593821,1736655045446,-8526.78,0.00019997,3]
[348593822,1736655045455,-151.0,0.00019998,2]
[348593823,1736655045466,-151.0,0.00019998,2]
[348593825,1736655045476,-151.0,0.00019998,2]
[348593827,1736655045485,-1820.99,0.00019998,3]
[348593828,1736655045495,-1820.99,0.00019998,3]
[348593829,1736655045504,-1820.99,0.00019998,3]
[348593830,1736655045513,-1820.99,0.00019998,3]
[348593831,1736655045522,-1820.99,0.00019998,3]
[348593833,1736655045531,-1820.99,0.00019998,3]
[348593834,1736655045540,-1820.99,0.00019998,3]
[348593835,1736655045549,-1820.99,0.00019998,3]
[348593836,1736655045557,-1820.99,0.00019998,3]
[348593837,1736655045566,-1820.99,0.00019998,3]
[348593838,1736655045577,-1820.99,0.00019998,3]
[348593840,1736655045588,-1820.99,0.00019998,3]
[348593842,1736655045596,-1820.99,0.00019998,3]
[348593843,1736655045605,-1821.22228204,0.00019998,3]
[348593844,1736655045614,-1327.42,0.00019998,3]
[348593845,1736655045624,-506.16233336,0.00019998,3]
[348593846,1736655045633,-500.0,0.00019998,3]
[348593848,1736655045643,-502.57573313,0.00019998,3]
[348593849,1736655045652,-7221.05,0.00019998,3]
[348593850,1736655045661,-150.332,0.00019998,2]
[348593851,1736655045670,-150.166,0.00019998,2]
[348593852,1736655045679,-150.0,0.00019998,2]
[348593853,1736655045688,-150.0,0.00019998,2]
[348593854,1736655045698,-153.587518,0.00019999,2]
[348593856,1736655045707,-151.0,0.00019999,2]
[348593858,1736655045717,-151.0,0.00019999,2]
[348593860,1736655045727,-195.869712,0.00019999,2]
[348593862,1736655045736,-1326.0,0.0002,3]
[348593864,1736655045746,-1326.0,0.0002,3]
[348593865,1736655045755,-1326.0,0.0002,3]
[348593866,1736655045764,-1326.0,0.0002,3]
[348593867,1736655045773,-192.44,0.0002,2]
[348593868,1736655045783,-1827.0,0.0002,3]
[348593869,1736655045792,-1826.0,0.0002,3]
[348593870,1736655045801,-1826.0,0.0002,3]
[348593871,1736655045811,-1826.0,0.0002,3]
[348593872,1736655045821,-1826.0,0.0002,3]
[348593873,1736655045831,-1826.0,0.0002,3]
[348593874,1736655045842,-664229.86356356,0.0002,5]
[348593875,1736655045851,-3842.0,0.0002,3]
[348593876,1736655045861,-3839.0,0.0002,3]
[348593877,1736655045870,-3839.0,0.0002,3]
[348593878,1736655045879,-3839.0,0.0002,3]
[348593879,1736655045888,-3839.0,0.0002,3]
[348593880,1736655045898,-3839.0,0.0002,3]
[348593881,1736655045907,-327.3740461,0.0002,2]
[348593882,1736655045916,-153.0,0.0002,2]
[348593883,1736655045925,-153.7894744,0.0002,2]
[348593884,1736655045935,-153.0,0.0002,2]
[348593885,1736655045944,-428.8088492,0.0002,2]
[348593886,1736655045954,-460.7115761,0.0002,2]
[348593887,1736655045963,-153.0,0.0002,2]
[348593888,1736655045975,-153.0,0.0002,2]
[348593889,1736655045984,-153.0,0.0002,2]
[348593890,1736655045994,-153.0,0.0002,2]
[348593891,1736655046003,-153.0,0.0002,2]
[348593892,1736655046012,-153.0,0.0002,2]
[348593893,1736655046022,-151.0,0.0002,2]
[348593894,1736655046031,-151.0,0.0002,2]
[348593895,1736655046041,-151.0,0.0002,2]
[348593896,1736655046050,-151.0,0.0002,2]
[348593897,1736655046061,-5884.0,0.0002,2]
[348593898,1736655046071,-151.70588843,0.0002,2]
[348593899,1736655046080,-151.0,0.0002,2]
[348593900,1736655046090,-619.0,0.0002,2]
[348593901,1736655046099,-696.5623,0.0002,2]
[348593902,1736655046109,-394.52377933,0.00020165,2]
[348593903,1736655046121,-721.83433089,0.0002018,2]
[348593904,1736655046130,-1205.16,0.00020263,3]
[348593905,1736655046139,-500.0,0.00020263,3]
[348593906,1736655046148,-500.0,0.00020264,3]
[348593907,1736655046158,-500.0,0.00020264,3]
[348593908,1736655046167,-9987.16,0.00020264,2]
[348593909,1736655046176,-500.0,0.00020264,3]
[348593910,1736655046185,-602.35,0.00020264,3]
[348593911,1736655046194,-4673.77,0.00020264,3]
[348593912,1736655046203,-500.0,0.00020264,3]
[348593913,1736655046212,-500.0,0.00020264,3]
[348593914,1736655046222,-500.0,0.00020264,3]
[348593915,1736655046231,-2203.6,0.00020264,3]
[348593916,1736655046242,-1418.89,0.00020264,3]
[348593917,1736655046252,-1132.97,0.00020264,3]
[348593918,1736655046262,-500.0,0.00020264,3]
[348593919,1736655046271,-500.0,0.00020264,3]
[348593920,1736655046281,-505.93616241,0.00020264,3]
[348593921,1736655046290,-2701.23,0.00020264,3]
[348593922,1736655046300,-2380.71,0.00020264,3]
[348593923,1736655046310,-765.29,0.00020264,3]
[348593924,1736655046319,-1414.81,0.00020264,3]
[348593925,1736655046330,-1494.15350849,0.00020264,3]
[348593926,1736655046479,-1086.38649151,0.00020264,3]
[348593927,1736655046490,-417.7099658,0.00020264,3]
[348593928,1736655046502,-82.2900342,0.00020264,3]
[348593929,1736655046512,-500.0,0.00020265,3]
[348593930,1736655046523,-487.37881396,0.00020265,3]
[348593931,1736655046916,-500.0,0.00019991,3]
[348593932,1736655046925,-500.0,0.00019991,3]
[348593933,1736655046936,-12.62118604,0.00020265,3]
[348593934,1736655046946,-500.0,0.00020265,3]
[348593935,1736655046957,-500.0,0.00020265,3]
[348593936,1736655046967,-502.97198114,0.00020265,3]
[348593937,1736655046977,-500.0,0.00020265,3]
[348593938,1736655046987,-500.0,0.00020265,3]
[348593939,1736655046998,-500.0,0.00020265,3]
[348593940,1736655047009,-503.01330262,0.00020265,3]
[348593941,1736655047018,-500.0,0.00020265,3]
[348593942,1736655047028,-500.0,0.00020265,3]
[348593943,1736655047039,-500.0,0.00020265,3]
[348593944,1736655047050,-558.44660358,0.00020265,3]
[348593945,1736655047060,-502.16564712,0.00020265,3]
[348593946,1736655047069,-500.0,0.00020265,3]
[348593947,1736655047078,-500.0,0.00020265,3]
[348593948,1736655047091,-500.0,0.00020265,3]
[348593949,1736655047101,-503.24161334,0.00020265,3]
[348593950,1736655047111,-500.0,0.00020265,3]
[348593951,1736655047120,-211.39903191,0.00020265,3]
[348593952,1736655047129,-199.63495786,0.00020265,3]
[348593953,1736655047141,-300.36504214,0.00020265,3]
[348593954,1736655047150,-500.0,0.00020265,3]
[348593955,1736655047159,-200.0,0.00020265,3]
[348593956,1736655047170,-500.0,0.00020265,3]
[348593957,1736655047180,-500.0,0.00020265,3]
[348593958,1736655047191,-500.0,0.00020265,3]
[348593959,1736655047201,-549.06,0.00020265,3]
[348593960,1736655047211,-500.0,0.00020265,3]
[348593961,1736655047220,-500.0,0.00020265,3]
[348593962,1736655047232,-500.0,0.00020265,3]
[348593963,1736655047241,-500.0,0.00020265,3]
[348593964,1736655047251,-1008.79,0.00020265,3]
[348593965,1736655047260,-500.0,0.00020265,3]
[348593966,1736655047271,-500.0,0.00020265,3]
[348593967,1736655047280,-501.05870743,0.00020265,3]